fUST/lending_fUST_20250829
["ID","MTS","AMOUNT","RATE_DAILY","PERIOD"]
[381925070,1756411847066,-4619.09,0.00020547,2]
[381925072,1756411847075,-567.09,0.00020547,2]
[381925074,1756411847085,-495.97,0.00020547,2]
[381925076,1756411847095,-480.0,0.00020547,2]
[381925078,1756411847104,-1951.19,0.00020547,2]
[381925080,1756411847114,-2127.68,0.00020547,2]
[381925082,1756411847124,-4797.2,0.00020547,2]
[381925084,1756411847134,-480.0,0.00020547,2]
[381925086,1756411847143,-480.0,0.00020547,2]
[381925088,1756411847153,-480.0,0.00020547,2]
[381925090,1756411847165,-480.0,0.00020547,2]
[381925092,1756411847175,-2717.58,0.00020547,2]
[381925095,1756411847185,-621.37847881,0.00020547,2]
[381925097,1756411847195,-579.96,0.00020547,2]
[381925099,1756411847204,-1976.13,0.00020547,2]
[381925101,1756411847214,-480.0,0.00020547,2]
[381925103,1756411847224,-480.0,0.00020547,2]
[381925105,1756411847234,-480.0,0.00020547,2]
[381925107,1756411847243,-480.0,0.00020547,2]
[381925109,1756411847253,-514.87,0.00020547,2]
[381925111,1756411847262,-2991.83,0.00020547,2]
[381925113,1756411847273,-480.0,0.00020547,2]
[381925115,1756411847283,-480.0,0.00020547,2]
[381925117,1756411847292,-480.0,0.00020547,2]
[381925119,1756411847302,-480.0,0.00020547,2]
[381925121,1756411847313,-480.0,0.00020547,2]
[381925123,1756411847325,-480.0,0.00020547,2]
[381925125,1756411847337,-660.99,0.00020547,2]
[381925127,1756411847347,-480.0,0.00020547,2]
[381925129,1756411847357,-480.0,0.00020547,2]
[381925131,1756411847366,-480.0,0.00020547,2]
[381925133,1756411847377,-480.0,0.00020547,2]
[381925135,1756411847386,-480.0,0.00020547,2]
[381925137,1756411847397,-245.0,0.00020548,2]
[381925139,1756411847407,-500.0,0.00020548,2]
[381925142,1756411847417,-151.0,0.00020548,2]
[381925144,1756411847429,-151.0,0.00020548,2]
[381925146,1756411847439,-151.0,0.00020548,2]
[381925148,1756411847448,-797.24511542,0.0002072,2]
[381925150,1756411847458,-2000.0,0.00020816,2]
[381925152,1756411847467,-480.0,0.00020821,2]
[381925154,1756411847476,-480.0,0.00020821,2]
[381925156,1756411847485,-480.0,0.00020821,2]
[381925158,1756411847495,-480.0,0.00020821,2]
[381925160,1756411847504,-480.0,0.00020821,2]
[381925162,1756411847513,-480.0,0.00020821,2]
[381925164,1756411847523,-480.0,0.00020821,2]
[381925166,1756411847533,-480.0,0.00020821,2]
[381925168,1756411847542,-480.0,0.00020821,2]
[381925169,1756411847552,-480.0,0.00020821,2]
[381925171,1756411847562,-480.0,0.00020821,2]
[381925173,1756411847571,-480.0,0.00020821,2]
[381925175,1756411847581,-480.0,0.00020821,2]
[381925177,1756411847590,-480.0,0.00020821,2]
[381925179,1756411847600,-480.0,0.00020821,2]
[381925181,1756411847610,-480.0,0.00020821,2]
[381925183,1756411847619,-480.0,0.00020821,2]
[381925185,1756411847629,-480.0,0.00020821,2]
[381925186,1756411847639,-480.0,0.00020821,2]
[381925188,1756411847649,-480.0,0.00020821,2]
[381925190,1756411847658,-480.0,0.00020821,2]
[381925192,1756411847667,-480.0,0.00020821,2]
[381925194,1756411847677,-480.0,0.00020821,2]
[381925196,1756411847687,-480.0,0.00020821,2]
[381925198,1756411847696,-480.0,0.00020821,2]
[381925199,1756411847706,-480.0,0.00020821,2]
[381925200,1756411847715,-480.0,0.00020821,2]
[381925201,1756411847725,-480.0,0.00020821,2]
[381925202,1756411847735,-480.0,0.00020821,2]
[381925203,1756411847744,-480.0,0.00020821,2]
[381925204,1756411847754,-480.0,0.00020821,2]
[381925205,1756411847763,-480.0,0.00020821,2]
[381925206,1756411847772,-4619.09,0.00020821,2]
[381925207,1756411847782,-495.97,0.00020821,2]
[381925208,1756411847792,-480.0,0.00020821,2]
[381925209,1756411847801,-1951.19,0.00020821,2]
[381925210,1756411847812,-2127.68,0.00020821,2]
[381925211,1756411847821,-4797.2,0.00020821,2]
[381925212,1756411847832,-480.0,0.00020821,2]
[381925213,1756411847842,-480.0,0.00020821,2]
[381925214,1756411847851,-480.0,0.00020821,2]
[381925215,1756411847861,-480.0,0.00020821,2]
[381925216,1756411847872,-2717.58,0.00020821,2]
[381925217,1756411847881,-579.96,0.00020821,2]
[381925218,1756411847891,-1976.13,0.00020821,2]
[381925219,1756411847901,-480.0,0.00020821,2]
[381925220,1756411847910,-545.81502285,0.00020821,2]
[381925221,1756411848031,-480.0,0.00020821,2]
[381925222,1756411848042,-480.0,0.00020821,2]
[381925223,1756411848051,-514.87,0.00020821,2]
[381925224,1756411848061,-2991.83,0.00020821,2]
[381925225,1756411848071,-480.0,0.00020821,2]
[381925226,1756411848081,-480.0,0.00020821,2]
[381925227,1756411848090,-190.43500821,0.00020821,2]
[381925228,1756411848100,-480.0,0.00020821,2]
[381925229,1756411848110,-480.0,0.00020821,2]
[381925230,1756411848120,-480.0,0.00020821,2]
[381925231,1756411848129,-660.99,0.00020821,2]
[381925232,1756411848139,-480.0,0.00020821,2]
[381925233,1756411848153,-376.25,0.00020821,2]
[381925234,1756411848162,-151.0,0.00020821,2]
[381925235,1756411848172,-480.0,0.00020821,2]
[381925236,1756411848182,-151.0,0.00020821,2]
[381925237,1756411848191,-151.0,0.00020821,2]
[381925238,1756411848201,-151.0,0.00020821,2]
[381925239,1756411848211,-151.0,0.00020821,2]
[381925240,1756411848221,-151.0,0.00020821,2]
[381925241,1756411848230,-151.0,0.00020821,2]
[381925242,1756411848239,-151.0,0.00020821,2]
[381925243,1756411848249,-151.0,0.00020821,2]
[381925244,1756411848259,-151.0,0.00020821,2]
[381925245,1756411848269,-151.0,0.00020821,2]
[381925246,1756411848280,-480.0,0.00020821,2]
[381925247,1756411848290,-151.0,0.00020821,2]
[381925248,1756411848300,-500.0,0.00020822,2]
[381925249,1756411848310,-151.0,0.00020822,2]
[381925250,1756411848324,-151.0,0.00020822,2]
[381925251,1756411848335,-1500.0,0.00020868,2]
[381925252,1756411848345,-1500.0,0.00020868,2]
[381925253,1756411848355,-1000.0,0.00020868,2]
[381925254,1756411848365,-520.03551996,0.00020868,2]
[381925255,1756411848375,-600.0,0.00020955,20]
[381925256,1756411848385,-4805.147006,0.00021,2]
[381925257,1756411848397,-3108.87365266,0.00021,10]
[381925258,1756411848408,-542.96,0.00021095,2]
[381925259,1756411848418,-480.0,0.00021095,2]
[381925260,1756411848427,-480.0,0.00021095,2]
[381925261,1756411848437,-480.0,0.00021095,2]
[381925262,1756411848446,-480.0,0.00021095,2]
[381925263,1756411848456,-480.0,0.00021095,2]
[381925264,1756411848465,-480.0,0.00021095,2]
[381925265,1756411848475,-480.0,0.00021095,2]
[381925266,1756411848485,-480.0,0.00021095,2]
[381925267,1756411848494,-480.0,0.00021095,2]
[381925268,1756411848503,-480.0,0.00021095,2]
[381925269,1756411848513,-480.0,0.00021095,2]
[381925270,1756411848523,-480.0,0.00021095,2]
[381925271,1756411848533,-480.0,0.00021095,2]
[381925272,1756411848543,-480.0,0.00021095,2]
[381925273,1756411848552,-480.0,0.00021095,2]
[381925274,1756411848562,-480.0,0.00021095,2]
[381925275,1756411848572,-480.0,0.00021095,2]
[381925276,1756411848581,-480.0,0.00021095,2]
[381925277,1756411848591,-480.0,0.00021095,2]
[381925278,1756411848601,-480.0,0.00021095,2]
[381925279,1756411848610,-480.0,0.00021095,2]
[381925280,1756411848620,-480.0,0.00021095,2]
[381925281,1756411848629,-480.0,0.00021095,2]
[381925282,1756411848638,-480.0,0.00021095,2]
[381925283,1756411848648,-480.0,0.00021095,2]
[381925284,1756411848658,-480.0,0.00021095,2]
[381925285,1756411848667,-480.0,0.00021095,2]
[381925286,1756411848676,-480.0,0.00021095,2]
[381925287,1756411848686,-480.0,0.00021095,2]
[381925288,1756411848696,-480.0,0.00021095,2]
[381925289,1756411848705,-151.0,0.00021095,2]
[381925290,1756411848715,-4619.09,0.00021095,2]
[381925291,1756411848725,-151.0,0.00021095,2]
[381925292,1756411848735,-151.0,0.00021095,2]
[381925293,1756411848745,-151.0,0.00021095,2]
[381925294,1756411848754,-174.86144,0.00021095,2]
[381925295,1756411848763,-154.886015,0.00021095,2]
[381925296,1756411848773,-174.86144,0.00021095,2]
[381925297,1756411848783,-174.86144,0.00021095,2]
[381925298,1756411848792,-495.97,0.00021095,2]
[381925299,1756411848802,-174.86144,0.00021095,2]
[381925300,1756411848811,-480.0,0.00021095,2]
[381925301,1756411848821,-1951.19,0.00021095,2]
[381925302,1756411848830,-151.0,0.00021095,2]
[381925303,1756411848840,-2127.68,0.00021095,2]
[381925304,1756411848850,-151.0,0.00021095,2]
[381925305,1756411848860,-4797.2,0.00021095,2]
[381925306,1756411848869,-480.0,0.00021095,2]
[381925307,1756411848879,-253.344685,0.00021095,2]
[381925308,1756411848888,-151.0,0.00021095,2]
[381925309,1756411848898,-480.0,0.00021095,2]
[381925310,1756411848907,-253.344685,0.00021095,2]
[381925311,1756411848916,-253.344685,0.00021095,2]
[381925312,1756411848925,-253.344685,0.00021095,2]
[381925313,1756411848935,-151.0,0.00021095,2]
[381925314,1756411848944,-151.0,0.00021095,2]
[381925315,1756411848954,-212.50739,0.00021095,2]
[381925316,1756411848963,-151.0,0.00021095,2]
[381925317,1756411848973,-212.50739,0.00021095,2]
[381925318,1756411848982,-151.0,0.00021095,2]
[381925319,1756411848992,-212.50739,0.00021095,2]
[381925320,1756411849001,-256.079318,0.00021095,2]
[381925321,1756411849011,-212.50739,0.00021095,2]
[381925322,1756411849020,-168.254021,0.00021095,2]
[381925323,1756411849030,-151.0,0.00021095,2]
[381925324,1756411849040,-168.254021,0.00021095,2]
[381925325,1756411849049,-151.0,0.00021095,2]
[381925326,1756411849059,-168.254021,0.00021095,2]
[381925327,1756411849068,-168.254021,0.00021095,2]
[381925328,1756411849078,-151.0,0.00021095,2]
[381925329,1756411849088,-151.0,0.00021095,2]
[381925330,1756411849098,-151.0,0.00021095,2]
[381925331,1756411849107,-151.0,0.00021095,2]
[381925332,1756411849117,-151.0,0.00021095,2]
[381925333,1756411849127,-480.0,0.00021095,2]
[381925334,1756411849138,-480.0,0.00021095,2]
[381925335,1756411849148,-2717.58,0.00021095,2]
[381925336,1756411849158,-579.96,0.00021095,2]
[381925337,1756411849168,-151.0,0.00021095,2]
[381925338,1756411849178,-152.074567,0.00021095,2]
[381925339,1756411849188,-151.0,0.00021095,2]
[381925340,1756411849198,-151.0,0.00021095,2]
[381925341,1756411849208,-1976.13,0.00021095,2]
[381925342,1756411849218,-151.0,0.00021095,2]
[381925343,1756411849227,-480.0,0.00021095,2]
[381925344,1756411849237,-151.0,0.00021095,2]
[381925345,1756411849247,-151.0,0.00021095,2]
[381925346,1756411849258,-151.0,0.00021095,2]
[381925347,1756411849268,-151.0,0.00021095,2]
[381925348,1756411849278,-480.0,0.00021095,2]
[381925349,1756411849287,-480.0,0.00021095,2]
[381925350,1756411849297,-514.87,0.00021095,2]
[381925351,1756411849306,-151.0,0.00021095,2]
[381925352,1756411849318,-2991.83,0.00021095,2]
[381925353,1756411849329,-300.0,0.00021095,2]
[381925354,1756411849338,-480.0,0.00021095,2]
[381925355,1756411849348,-480.0,0.00021095,2]
[381925356,1756411849359,-480.0,0.00021095,2]
[381925357,1756411849369,-623.300659,0.00021095,2]
[381925358,1756411849378,-623.300659,0.00021095,2]
[381925359,1756411849388,-151.0,0.00021095,2]
[381925360,1756411849398,-623.300659,0.00021095,2]
[381925361,1756411849408,-162.839228,0.00021095,2]
[381925362,1756411849417,-623.300659,0.00021095,2]
[381925363,1756411849427,-480.0,0.00021095,2]
[381925364,1756411849436,-151.0,0.00021095,2]
[381925365,1756411849445,-162.839228,0.00021095,2]
[381925366,1756411849454,-151.0,0.00021095,2]
[381925367,1756411849464,-162.839228,0.00021095,2]
[381925368,1756411849473,-162.839228,0.00021095,2]
[381925369,1756411849483,-151.0,0.00021095,2]
[381925370,1756411849492,-505.47,0.00021095,2]
[381925371,1756411849502,-660.99,0.00021095,2]
[381925372,1756411849512,-151.0,0.00021095,2]
[381925373,1756411849521,-249.718,0.00021095,2]
[381925374,1756411849534,-480.0,0.00021095,2]
[381925375,1756411849543,-151.0,0.00021095,2]
[381925376,1756411849552,-496.542923,0.00021095,2]
[381925377,1756411849562,-151.0,0.00021095,2]
[381925378,1756411849571,-496.542923,0.00021095,2]
[381925379,1756411849581,-480.0,0.00021095,2]
[381925380,1756411849590,-496.542923,0.00021095,2]
[381925381,1756411849600,-496.542923,0.00021095,2]
[381925382,1756411849610,-480.0,0.00021095,2]
[381925383,1756411849619,-500.0,0.00021096,2]
[381925384,1756411849629,-198.0,0.00021096,2]
[381925385,1756411849638,-198.0,0.00021096,2]
[381925386,1756411849647,-197.783192,0.00021263,2]
[381925387,1756411849657,-197.783192,0.00021263,2]
[381925388,1756411849666,-197.783192,0.00021263,2]
[381925389,1756411849676,-197.783192,0.00021263,2]
[381925390,1756411849685,-151.0,0.00021263,2]
[381925391,1756411849694,-151.0,0.00021263,2]
[381925392,1756411849704,-151.0,0.00021263,2]
[381925393,1756411849714,-151.0,0.00021263,2]
[381925394,1756411849723,-151.0,0.00021263,2]
[381925395,1756411849733,-151.0,0.00021263,2]
[381925396,1756411849742,-151.0,0.00021263,2]
[381925397,1756411849752,-151.0,0.00021263,2]
[381925398,1756411849762,-151.0,0.00021263,2]
[381925399,1756411849771,-276.450938,0.00021263,2]
[381925400,1756411849782,-276.450938,0.00021263,2]
[381925401,1756411849792,-151.0,0.00021263,2]
[381925402,1756411849802,-276.450938,0.00021263,2]
[381925403,1756411849811,-276.450938,0.00021263,2]
[381925404,1756411849821,-151.0,0.00021263,2]
[381925405,1756411849831,-151.0,0.00021263,2]
[381925406,1756411849841,-151.0,0.00021263,2]
[381925407,1756411849851,-151.0,0.00021263,2]
[381925408,1756411849860,-151.0,0.00021263,2]
[381925409,1756411849869,-194.364534,0.00021263,2]
[381925410,1756411849879,-194.364534,0.00021263,2]
[381925411,1756411849889,-151.0,0.00021263,2]
[381925412,1756411849899,-194.364534,0.00021263,2]
[381925413,1756411849910,-194.364534,0.00021263,2]
[381925414,1756411849921,-151.422193,0.00021263,2]
[381925415,1756411849931,-151.0,0.00021263,2]
[381925416,1756411849941,-151.0,0.00021263,2]
[381925417,1756411849950,-151.0,0.00021263,2]
[381925418,1756411849961,-151.0,0.00021263,2]
[381925419,1756411849971,-227.175125,0.00021263,2]
[381925420,1756411849982,-227.175125,0.00021263,2]
[381925421,1756411849994,-227.175125,0.00021263,2]
[381925422,1756411850004,-227.175125,0.00021263,2]
[381925423,1756411850015,-100000.0,0.00021263,2]
[381925424,1756411850025,-160.0,0.00021291,2]
[381925425,1756411850035,-2500.0,0.00021364,2]
[381925426,1756411850044,-480.0,0.00021369,2]
[381925427,1756411850054,-313.26,0.00021369,2]
[381925428,1756411850064,-480.0,0.00021369,2]
[381925429,1756411850074,-480.0,0.00021369,2]
[381925430,1756411850084,-215.85,0.00021369,2]
[381925431,1756411850095,-480.0,0.00021369,2]
[381925432,1756411850105,-151.0,0.00021369,2]
[381925433,1756411850115,-151.0,0.00021369,2]
[381925434,1756411850124,-151.0,0.00021369,2]
[381925435,1756411850134,-480.0,0.00021369,2]
[381925436,1756411850144,-151.0,0.00021369,2]
[381925437,1756411850153,-480.0,0.00021369,2]
[381925438,1756411850163,-151.0,0.00021369,2]
[381925439,1756411850173,-152.614595,0.00021369,2]
[381925440,1756411850182,-151.0,0.00021369,2]
[381925441,1756411850192,-480.0,0.00021369,2]
[381925442,1756411850202,-480.0,0.00021369,2]
[381925443,1756411850212,-480.0,0.00021369,2]
[381925444,1756411850221,-480.0,0.00021369,2]
[381925445,1756411850231,-151.0,0.00021369,2]
[381925446,1756411850240,-151.0,0.00021369,2]
[381925447,1756411850250,-480.0,0.00021369,2]
[381925448,1756411850259,-480.0,0.00021369,2]
[381925449,1756411850269,-270.001149,0.00021369,2]
[381925450,1756411850278,-480.0,0.00021369,2]
[381925451,1756411850287,-480.0,0.00021369,2]
[381925452,1756411850297,-480.0,0.00021369,2]
[381925453,1756411850306,-538.65,0.00021369,2]
[381925454,1756411850317,-480.0,0.00021369,2]
[381925455,1756411850327,-480.0,0.00021369,2]
[381925456,1756411850337,-480.0,0.00021369,2]
[381925457,1756411850347,-480.0,0.00021369,2]
[381925458,1756411850358,-480.0,0.00021369,2]
[381925459,1756411850368,-480.0,0.00021369,2]
[381925460,1756411850377,-480.0,0.00021369,2]
[381925461,1756411850388,-480.0,0.00021369,2]
[381925462,1756411850403,-480.0,0.00021369,2]
[381925463,1756411850414,-480.0,0.00021369,2]
[381925464,1756411850425,-480.0,0.00021369,2]
[381925465,1756411850434,-622.04,0.00021369,2]
[381925466,1756411850444,-4619.09,0.00021369,2]
[381925467,1756411850454,-495.97,0.00021369,2]
[381925468,1756411850463,-480.0,0.00021369,2]
[381925469,1756411850473,-1951.19,0.00021369,2]
[381925470,1756411850482,-2127.68,0.00021369,2]
[381925471,1756411850491,-4797.2,0.00021369,2]
[381925472,1756411850500,-480.0,0.00021369,2]
[381925473,1756411850510,-480.0,0.00021369,2]
[381925474,1756411850520,-480.0,0.00021369,2]
[381925475,1756411850531,-480.0,0.00021369,2]
[381925476,1756411850541,-2717.58,0.00021369,2]
[381925477,1756411850553,-579.96,0.00021369,2]
[381925478,1756411850563,-1976.13,0.00021369,2]
[381925479,1756411850572,-480.0,0.00021369,2]
[381925480,1756411850583,-480.0,0.00021369,2]
[381925481,1756411850593,-480.0,0.00021369,2]
[381925482,1756411850602,-514.87,0.00021369,2]
[381925483,1756411850612,-2991.83,0.00021369,2]
[381925484,1756411850621,-480.0,0.00021369,2]
[381925485,1756411850631,-480.0,0.00021369,2]
[381925486,1756411850641,-480.0,0.00021369,2]
[381925487,1756411850651,-480.0,0.00021369,2]
[381925488,1756411850662,-660.99,0.00021369,2]
[381925489,1756411850672,-480.0,0.00021369,2]
[381925490,1756411850682,-480.0,0.00021369,2]
[381925491,1756411850692,-480.0,0.00021369,2]
[381925492,1756411850702,-500.0,0.0002137,2]
[381925493,1756411850711,-1000.0,0.000214,2]
[381925494,1756411850721,-1000.0,0.000214,2]
[381925495,1756411850731,-1000.0,0.000214,2]
[381925496,1756411850740,-1000.0,0.000214,2]
[381925497,1756411850750,-1000.0,0.000214,2]
[381925498,1756411850760,-1000.0,0.000214,2]
[381925499,1756411850769,-1000.0,0.000214,2]
[381925500,1756411850780,-151.0,0.000214,2]
[381925501,1756411850789,-151.0,0.000214,2]
[381925502,1756411850798,-151.0,0.000214,2]
[381925503,1756411850809,-151.0,0.000214,2]
[381925504,1756411850818,-151.0,0.000214,2]
[381925505,1756411850828,-151.0,0.000214,2]
[381925506,1756411850838,-151.0,0.000214,2]
[381925507,1756411850848,-151.0,0.000214,2]
[381925508,1756411850857,-151.0,0.000214,2]
[381925509,1756411850866,-797.24511542,0.00021404,2]
[381925510,1756411850877,-2000.0,0.00021416,2]
[381925511,1756411850886,-2000.0,0.00021416,2]
[381925512,1756411850896,-3176.84569905,0.00021627,2]
[381925513,1756411850906,-480.0,0.00021643,2]
[381925514,1756411850915,-480.0,0.00021643,2]
[381925515,1756411850925,-480.0,0.00021643,2]
[381925516,1756411850934,-151.0,0.00021643,2]
[381925517,1756411850944,-151.0,0.00021643,2]
[381925518,1756411850953,-480.0,0.00021643,2]
[381925519,1756411850963,-480.0,0.00021643,2]
[381925520,1756411851083,-480.0,0.00021643,2]
[381925521,1756411851093,-480.0,0.00021643,2]
[381925522,1756411851103,-480.0,0.00021643,2]
[381925523,1756411851112,-435.51,0.00021643,2]
[381925524,1756411851121,-480.0,0.00021643,2]
[381925525,1756411851131,-206.72,0.00021643,2]
[381925526,1756411851141,-374.27,0.00021643,2]
[381925527,1756411851150,-480.0,0.00021643,2]
[381925528,1756411851159,-432.21,0.00021643,2]
[381925529,1756411851169,-480.0,0.00021643,2]
[381925530,1756411851179,-480.0,0.00021643,2]
[381925531,1756411851188,-480.0,0.00021643,2]
[381925532,1756411851197,-480.0,0.00021643,2]
[381925533,1756411851207,-480.0,0.00021643,2]
[381925534,1756411851216,-480.0,0.00021643,2]
[381925535,1756411851226,-480.0,0.00021643,2]
[381925536,1756411851236,-480.0,0.00021643,2]
[381925537,1756411851245,-480.0,0.00021643,2]
[381925538,1756411851256,-480.0,0.00021643,2]
[381925539,1756411851266,-480.0,0.00021643,2]
[381925540,1756411851276,-480.0,0.00021643,2]
[381925541,1756411851285,-4619.09,0.00021643,2]
[381925542,1756411851295,-495.97,0.00021643,2]
[381925543,1756411851305,-480.0,0.00021643,2]
[381925544,1756411851315,-1951.19,0.00021643,2]
[381925545,1756411851328,-2127.68,0.00021643,2]
[381925546,1756411851338,-4797.2,0.00021643,2]
[381925547,1756411851347,-480.0,0.00021643,2]
[381925548,1756411851358,-480.0,0.00021643,2]
[381925549,1756411851368,-480.0,0.00021643,2]
[381925550,1756411851378,-480.0,0.00021643,2]
[381925551,1756411851388,-2717.58,0.00021643,2]
[381925552,1756411851399,-579.96,0.00021643,2]
[381925553,1756411851409,-151.0,0.00021643,2]
[381925554,1756411851419,-151.0,0.00021643,2]
[381925555,1756411851429,-151.0,0.00021643,2]
[381925556,1756411851438,-1976.13,0.00021643,2]
[381925557,1756411851448,-151.0,0.00021643,2]
[381925558,1756411851458,-480.0,0.00021643,2]
[381925559,1756411851468,-151.0,0.00021643,2]
[381925560,1756411851479,-151.0,0.00021643,2]
[381925561,1756411851491,-151.0,0.00021643,2]
[381925562,1756411851502,-480.0,0.00021643,2]
[381925563,1756411851512,-519.71,0.00021643,2]
[381925564,1756411851523,-514.87,0.00021643,2]
[381925565,1756411851534,-151.0,0.00021643,2]
[381925566,1756411851543,-2385.75993291,0.00021643,2]
[381925567,1756411851649,-606.07006709,0.00021643,2]
[381925568,1756411851659,-480.0,0.00021643,2]
[381925569,1756411851669,-480.0,0.00021643,2]
[381925570,1756411851679,-480.0,0.00021643,2]
[381925571,1756411851691,-623.300659,0.00021643,2]
[381925572,1756411851701,-623.300659,0.00021643,2]
[381925573,1756411851711,-151.0,0.00021643,2]
[381925574,1756411851721,-623.300659,0.00021643,2]
[381925575,1756411851731,-162.839228,0.00021643,2]
[381925576,1756411851740,-623.300659,0.00021643,2]
[381925577,1756411851751,-480.0,0.00021643,2]
[381925578,1756411851760,-162.839228,0.00021643,2]
[381925579,1756411851769,-168.824,0.00021643,2]
[381925580,1756411851780,-151.0,0.00021643,2]
[381925581,1756411851789,-162.839228,0.00021643,2]
[381925582,1756411851799,-162.839228,0.00021643,2]
[381925583,1756411851811,-151.0,0.00021643,2]
[381925584,1756411851821,-660.99,0.00021643,2]
[381925585,1756411851832,-151.0,0.00021643,2]
[381925586,1756411851843,-480.0,0.00021643,2]
[381925587,1756411851852,-151.0,0.00021643,2]
[381925588,1756411851862,-496.542923,0.00021643,2]
[381925589,1756411851871,-151.0,0.00021643,2]
[381925590,1756411851880,-496.542923,0.00021643,2]
[381925591,1756411851891,-257.43,0.00021643,2]
[381925592,1756411851901,-276.32206168,0.00021643,2]
[381925593,1756411851913,-220.22086132,0.00021643,2]
[381925594,1756411851924,-115.47913868,0.00021643,2]
[381925595,1756411851937,-381.06378432,0.00021643,2]
[381925596,1756411851949,-480.0,0.00021643,2]
[381925597,1756411851959,-121.53621568,0.00021644,2]
[381925598,1756411852128,-480.0,0.00019452,2]
[381925599,1756411852138,-480.0,0.00019726,2]
[381925600,1756411852147,-92.44073154,0.0002,2]
[381925601,1756411852738,-480.0,0.00019178,2]
[381925602,1756411852748,-480.0,0.00019178,2]
[381925603,1756411852758,-472.29926846,0.0002,2]
[381925604,1756411852767,-376.28952875,0.00020821,2]
[381925605,1756411852777,-187.915761,0.00020821,2]
[381925606,1756411852786,-151.0,0.00020821,2]
[381925607,1756411852796,-151.0,0.000214,2]
[381925608,1756411852805,-378.46378432,0.00021644,2]
[381925609,1756411852815,-253.344685,0.00021664,2]
[381925610,1756411852824,-151.0,0.00021664,2]
[381925611,1756411852834,-253.344685,0.00021664,2]
[381925612,1756411852843,-253.344685,0.00021664,2]
[381925613,1756411852852,-253.344685,0.00021664,2]
[381925614,1756411852863,-151.0,0.00021664,2]
[381925615,1756411852873,-212.50739,0.00021664,2]
[381925616,1756411852883,-151.0,0.00021664,2]
[381925617,1756411852893,-212.50739,0.00021664,2]
[381925618,1756411852902,-151.0,0.00021664,2]
[381925619,1756411852912,-212.50739,0.00021664,2]
[381925620,1756411852922,-212.50739,0.00021664,2]
[381925621,1756411852931,-168.254021,0.00021664,2]
[381925622,1756411852940,-151.0,0.00021664,2]
[381925623,1756411852950,-168.254021,0.00021664,2]
[381925624,1756411852959,-151.0,0.00021664,2]
[381925625,1756411852969,-168.254021,0.00021664,2]
[381925626,1756411852978,-151.0,0.00021664,2]
[381925627,1756411852989,-151.0,0.00021664,2]
[381925628,1756411852999,-151.0,0.00021664,2]
[381925629,1756411853009,-168.254021,0.00021664,2]
[381925630,1756411853018,-151.0,0.00021664,2]
[381925631,1756411853027,-260.0,0.00021839,2]
[381925632,1756411853037,-151.0,0.000219,4]
[381925633,1756411853046,-554.73448653,0.00021912,2]